{"text_format":"3","workbook":"xlsx","n_sheets":2,"sheets":["START","JAHRESARBEITSZEITTABELLE"],"not_rendered":{"defined_names":2},"read":"whole","date_system":"1900"}

{"sheet":"START","index":0,"n_rows":8,"n_cols":2,"rows_kept":8}
[null,"ÜBER DIESE VORLAGE"]
[null,"Verfolgen Sie Ihre Stunden täglich, wöchentlich, monatlich und jährlich auf dieser Mitarbeiter-Zeiterfassungskarte."]
[null,"Geben Sie Grundinformationen wie den Namen des Mitarbeiters, den Namen des Vorgesetzten, die E-Mail-Adresse und die Telefonnummer ein. "]
[null,"Fügen Sie den einzelnen Monatstabellen Ihre Stunden hinzu. Protokollieren Sie reguläre Arbeitsstunden und Überstunden in separaten Spalten für jeden Wochentag jeder Woche. "]
[null,"Arbeitsstunden gesamt, reguläre Arbeitsstunden und Überstunden werden automatisch berechnet. "]
[null,"Anmerkungen:"]
[null,"Zusätzliche Anweisungen wurden in Spalte A auf dem Arbeitsblatt JAHRESARBEITSZEITTABELLE bereitgestellt. Diese Texte wurden absichtlich ausgeblendet. Um die Texte zu entfernen, wählen Sie Spalte A und dann ZELLEN LÖSCHEN aus. Um die Texte einzublenden, wählen Sie Spalte A aus, und ändern Sie die Schriftfarbe. "]
[null,"Um mehr über Tabellen zu erfahren, drücken Sie die UMSCHALTTASTE und dann F10 innerhalb einer Tabelle, und wählen Sie die Option TABELLE und dann ALTERNATIVTEXT aus."]

{"sheet":"JAHRESARBEITSZEITTABELLE","index":1,"n_rows":132,"n_cols":15,"rows_kept":132,"merged":[[0,1,0,2],[0,4,0,14],[10,6,10,7],[21,6,21,7],[32,6,32,7],[33,4,33,14],[43,6,43,7],[54,6,54,7],[65,6,65,7],[66,4,66,14],[76,6,76,7],[87,6,87,7],[98,6,98,7],[99,4,99,14],[109,6,109,7],[120,6,120,7],[131,6,131,7]]}
["Erstellen Sie auf diesem Arbeitsblatt eine tägliche, wöchentliche, monatliche oder jährliche Arbeitszeittabelle für Mitarbeiter. \nNützliche Anweisungen zum Verwenden dieser Arbeitsmappe befinden sich in Zellen in dieser Spalte. Drücken Sie die NACH-UNTEN-TASTE, um anzufangen.\nDer Titel dieses Arbeitsblatts befindet sich in der Zelle rechts, und die Quartalsüberschrift für Januar, Februar, März finden Sie in Zelle E1.","MITARBEITER ZEIT-\nERFASSUNGSKARTE",null,null,"Januar, Februar, März      Zeiterfassungskarte für Mitarbeiter: Täglich, wöchentlich, monatlich, jährlich"]
["Geben Sie den name des Mitarbeiters in Zelle C2 und die regulären Arbeits- sowie die Überstunden für Januar in der Tabelle ab Zelle E2 ein.","Name des Mitarbeiters:",null,null,"Januar","Woche 1","Überstunden","Woche 2","Überstunden  ","Woche 3","Überstunden   ","Woche 4","Überstunden    ","Woche 5","Überstunden     "]
["Geben Sie den Namen des Vorgesetzter in Zelle C3 ein.","Vorgesetzter:",null,null,"Montag",{"v":8,"d":"8.0"}]
["Geben Sie die E-Mail-Adresse in Zelle C4 ein.","E-Mail:",null,null,"Dienstag",{"v":8,"d":"8.0"},{"v":2,"d":"2.0"}]
["Geben Sie die Telefonnummer in Zelle C5 ein. Die nächste Anweisung finden Sie in Zelle A9.","Telefon:",null,null,"Mittwoch"]
[{"$nulls":4},"Donnerstag"]
[{"$nulls":4},"Freitag"]
[{"$nulls":4},"Samstag"]
["Die Jahressumme der regulären Arbeitsstunden wird in Zelle C9 automatisch berechnet.","Reguläre Std.:",{"$f":"ReguläreStd","v":31},null,"Sonntag"]
["Die Jahressumme der Überstunden wird in Zelle C10 automatisch berechnet.","Überstunden:",{"$f":"Überstunden","v":4},null,"Wöchentliche Stunden gesamt",{"$f":"SUM(F3:F9)","v":{"v":16,"d":"16.0"}},{"v":2,"d":"2.0"},{"v":0,"d":"0.0"},{"v":0,"d":"0.0"},{"v":0,"d":"0.0"},{"v":0,"d":"0.0"},{"v":0,"d":"0.0"},{"v":0,"d":"0.0"},{"v":0,"d":"0.0"},{"v":0,"d":"0.0"}]
["Die Jahressumme der Gesamtstunden wird in Zelle C11 automatisch berechnet. Die Summe der regulären Arbeitsstunden im Januar in Zelle F11 und die Summe der Überstunden im Januar in Zelle I11 sind automatisch berechnet. Die nächste Anweisung finden Sie in Zelle A13.","Summe",{"$f":"ReguläreStd+Überstunden","v":35},null,{"$f":"TEXT(DATEVALUE(Januar[[#Headers],[Januar]]&\"  \"&YEAR(TODAY())),\"MMM.\")&\" summe: Reguläre Std\"","v":"Jan. summe: Reguläre Std"},{"$f":"SUM(Januar[Woche 1],Januar[Woche 2],Januar[Woche 3],Januar[Woche 4],Januar[Woche 5])","v":{"v":16,"d":"16.0"}},{"$f":"TEXT(DATEVALUE(Januar[[#Headers],[Januar]]&\"  \"&YEAR(TODAY())),\"MMM.\")&\" summe: Überstunden\"","v":"Jan. summe: Überstunden"},null,{"$f":"SUM(Januar[Überstunden],Januar[[Überstunden  ]],Januar[[Überstunden   ]],Januar[[Überstunden    ]],Januar[[Überstunden     ]])","v":{"v":2,"d":"2.0"}}]
[]
["Geben Sie regulären Arbeits- und die Überstunden für Februar in der Tabelle ab Zelle E13 ein. Die nächste Anweisung finden Sie in Zelle A22.",{"$nulls":3},"Februar","Woche 1","Überstunden","Woche 2","Überstunden  ","Woche 3","Überstunden   ","Woche 4","Überstunden    ","Woche 5","Überstunden     "]
[{"$nulls":4},"Montag",{"v":8,"d":"8.0"}]
[{"$nulls":4},"Dienstag",{"v":7,"d":"7.0"},{"v":2,"d":"2.0"}]
[{"$nulls":4},"Mittwoch"]
[{"$nulls":4},"Donnerstag"]
[{"$nulls":4},"Freitag"]
[{"$nulls":4},"Samstag"]
[{"$nulls":4},"Sonntag"]
[{"$nulls":4},"Wöchentliche Stunden gesamt",{"$f":"SUM(F14:F20)","v":{"v":15,"d":"15.0"}},{"v":2,"d":"2.0"},{"v":0,"d":"0.0"},{"v":0,"d":"0.0"},{"v":0,"d":"0.0"},{"v":0,"d":"0.0"},{"v":0,"d":"0.0"},{"v":0,"d":"0.0"},{"v":0,"d":"0.0"},{"v":0,"d":"0.0"}]
["Die Summe der regulären Arbeitsstunden im Februar in Zelle F22 und die Summe der Überstunden im Februar in Zelle I22 sind automatisch berechnet. Die nächste Anweisung finden Sie in Zelle A24.",{"$nulls":3},{"$f":"TEXT(DATEVALUE(Februar[[#Headers],[Februar]]&\"  \"&YEAR(TODAY())),\"MMM.\")&\" summe: Reguläre Std\"","v":"Feb. summe: Reguläre Std"},{"$f":"SUM(Februar[Woche 1],Februar[Woche 2],Februar[Woche 3],Februar[Woche 4],Februar[Woche 5])","v":{"v":15,"d":"15.0"}},{"$f":"TEXT(DATEVALUE(Februar[[#Headers],[Februar]]&\" \"&YEAR(TODAY())),\"MMM.\")&\" summe: Überstunden\"","v":"Feb. summe: Überstunden"},null,{"$f":"SUM(Februar[Überstunden],Februar[[Überstunden  ]],Februar[[Überstunden   ]],Februar[[Überstunden    ]],Februar[[Überstunden     ]])","v":{"v":2,"d":"2.0"}}]
[]
["Geben Sie regulären Arbeits- und die Überstunden für März in der Tabelle ab Zelle E24 ein. Die nächste Anweisung finden Sie in Zelle A33.",{"$nulls":3},"März","Woche 1","Überstunden","Woche 2","Überstunden ","Woche 3","Überstunden  ","Woche 4","Überstunden    ","Woche 5","Überstunden     "]
[{"$nulls":4},"Montag"]
[{"$nulls":4},"Dienstag"]
[{"$nulls":4},"Mittwoch"]
[{"$nulls":4},"Donnerstag"]
[{"$nulls":4},"Freitag"]
[{"$nulls":4},"Samstag"]
[{"$nulls":4},"Sonntag"]
[{"$nulls":4},"Wöchentliche Stunden gesamt",{"$f":"SUM(F25:F31)","v":{"v":0,"d":"0.0"}},{"v":0,"d":"0.0"},{"v":0,"d":"0.0"},{"v":0,"d":"0.0"},{"v":0,"d":"0.0"},{"v":0,"d":"0.0"},{"v":0,"d":"0.0"},{"v":0,"d":"0.0"},{"v":0,"d":"0.0"},{"v":0,"d":"0.0"}]
["Die Summe der regulären Arbeitsstunden im März in Zelle F33 und die Summe der Überstunden im März in Zelle I33 sind automatisch berechnet.",{"$nulls":3},{"$f":"TEXT(DATEVALUE(März[[#Headers],[März]]&\" \"&YEAR(TODAY())),\"MMM.\")&\" summe: Reguläre Std\"","v":"Mrz. summe: Reguläre Std"},{"$f":"SUM(März[Woche 1],März[Woche 2],März[Woche 3],März[Woche 4],März[Woche 5])","v":{"v":0,"d":"0.0"}},{"$f":"TEXT(DATEVALUE(März[[#Headers],[März]]&\" \"&YEAR(TODAY())),\"MMM.\")&\" summe: Überstunden\"","v":"Mrz. summe: Überstunden"},null,{"$f":"SUM(März[Überstunden],März[[Überstunden ]],März[[Überstunden  ]],März[[Überstunden    ]],März[[Überstunden     ]])","v":{"v":0,"d":"0.0"}}]
["Die zweite Quartalsüberschrift für April, Mai, Juni finden Sie in Zelle E34. ",{"$nulls":3},"April, Mai, Juni      Zeiterfassungskarte für Mitarbeiter: Täglich, wöchentlich, monatlich, jährlich"]
["Geben Sie regulären Arbeits- und die Überstunden für April in der Tabelle ab Zelle E35 ein. Die nächste Anweisung finden Sie in Zelle A44.",{"$nulls":3},"April","Woche 1","Überstunden","Woche 2","Überstunden  ","Woche 3","Überstunden   ","Woche 4","Überstunden    ","Woche 5","Überstunden     "]
[{"$nulls":4},"Montag"]
[{"$nulls":4},"Dienstag"]
[{"$nulls":4},"Mittwoch"]
[{"$nulls":4},"Donnerstag"]
[{"$nulls":4},"Freitag"]
[{"$nulls":4},"Samstag"]
[{"$nulls":4},"Sonntag"]
[{"$nulls":4},"Wöchentliche Stunden gesamt",{"$f":"SUM(F36:F42)","v":{"v":0,"d":"0.0"}},{"v":0,"d":"0.0"},{"v":0,"d":"0.0"},{"v":0,"d":"0.0"},{"v":0,"d":"0.0"},{"v":0,"d":"0.0"},{"v":0,"d":"0.0"},{"v":0,"d":"0.0"},{"v":0,"d":"0.0"},{"v":0,"d":"0.0"}]
["Die Summe der regulären Arbeitsstunden im April in Zelle F44 und die Summe der Überstunden im April in Zelle I44 sind automatisch berechnet. Die nächste Anweisung finden Sie in Zelle A46.",{"$nulls":3},{"$f":"TEXT(DATEVALUE(April[[#Headers],[April]]&\" \"&YEAR(TODAY())),\"MMM.\")&\" summe: Reguläre Std\"","v":"Apr. summe: Reguläre Std"},{"$f":"SUM(April[Woche 1],April[Woche 2],April[Woche 3],April[Woche 4],April[Woche 5])","v":{"v":0,"d":"0.0"}},{"$f":"TEXT(DATEVALUE(April[[#Headers],[April]]&\" \"&YEAR(TODAY())),\"MMM.\")&\" summe: Überstunden\"","v":"Apr. summe: Überstunden"},null,{"$f":"SUM(April[Überstunden],April[[Überstunden  ]],April[[Überstunden   ]],April[[Überstunden    ]],April[[Überstunden     ]])","v":{"v":0,"d":"0.0"}}]
[]
["Geben Sie regulären Arbeits- und die Überstunden für Mai in der Tabelle ab Zelle E46 ein. Die nächste Anweisung finden Sie in Zelle A55.",{"$nulls":3},"Mai","Woche 1","Überstunden","Woche 2","Überstunden  ","Woche 3","Überstunden   ","Woche 4","Überstunden    ","Woche 5","Überstunden     "]
[{"$nulls":4},"Montag"]
[{"$nulls":4},"Dienstag"]
[{"$nulls":4},"Mittwoch"]
[{"$nulls":4},"Donnerstag"]
[{"$nulls":4},"Freitag"]
[{"$nulls":4},"Samstag"]
[{"$nulls":4},"Sonntag"]
[{"$nulls":4},"Wöchentliche Stunden gesamt",{"$f":"SUM(F47:F53)","v":{"v":0,"d":"0.0"}},{"v":0,"d":"0.0"},{"v":0,"d":"0.0"},{"v":0,"d":"0.0"},{"v":0,"d":"0.0"},{"v":0,"d":"0.0"},{"v":0,"d":"0.0"},{"v":0,"d":"0.0"},{"v":0,"d":"0.0"},{"v":0,"d":"0.0"}]
["Die Summe der regulären Arbeitsstunden im Mai in Zelle F55 und die Summe der Überstunden im Mai in Zelle I55 sind automatisch berechnet. Die nächste Anweisung finden Sie in Zelle A57.",{"$nulls":3},{"$f":"TEXT(DATEVALUE(Mai[[#Headers],[Mai]]&\" \"&YEAR(TODAY())),\"MMM.\")&\" summe: Reguläre Std\"","v":"Mai. summe: Reguläre Std"},{"$f":"SUM(Mai[Woche 1],Mai[Woche 2],Mai[Woche 3],Mai[Woche 4],Mai[Woche 5])","v":{"v":0,"d":"0.0"}},{"$f":"TEXT(DATEVALUE(Mai[[#Headers],[Mai]]&\" \"&YEAR(TODAY())),\"MMM.\")&\" summe: Überstunden\"","v":"Mai. summe: Überstunden"},null,{"$f":"SUM(Mai[Überstunden],Mai[[Überstunden  ]],Mai[[Überstunden   ]],Mai[[Überstunden    ]],Mai[[Überstunden     ]])","v":{"v":0,"d":"0.0"}}]
[]
["Geben Sie regulären Arbeits- und die Überstunden für Juni in der Tabelle ab Zelle E57 ein. Die nächste Anweisung finden Sie in Zelle A66.",{"$nulls":3},"Juni","Woche 1","Überstunden","Woche 2","Überstunden  ","Woche 3","Überstunden   ","Woche 4","Überstunden    ","Woche 5","Überstunden     "]
[{"$nulls":4},"Montag"]
[{"$nulls":4},"Dienstag"]
[{"$nulls":4},"Mittwoch"]
[{"$nulls":4},"Donnerstag"]
[{"$nulls":4},"Freitag"]
[{"$nulls":4},"Samstag"]
[{"$nulls":4},"Sonntag"]
[{"$nulls":4},"Wöchentliche Stunden gesamt",{"$f":"SUM(F58:F64)","v":{"v":0,"d":"0.0"}},{"v":0,"d":"0.0"},{"v":0,"d":"0.0"},{"v":0,"d":"0.0"},{"v":0,"d":"0.0"},{"v":0,"d":"0.0"},{"v":0,"d":"0.0"},{"v":0,"d":"0.0"},{"v":0,"d":"0.0"},{"v":0,"d":"0.0"}]
["Die Summe der regulären Arbeitsstunden im Juni in Zelle F66 und die Summe der Überstunden im Juni in Zelle I66 sind automatisch berechnet.",{"$nulls":3},{"$f":"TEXT(DATEVALUE(Juni[[#Headers],[Juni]]&\" \"&YEAR(TODAY())),\"MMM.\")&\" summe: Reguläre Std\"","v":"Jun. summe: Reguläre Std"},{"$f":"SUM(Juni[Woche 1],Juni[Woche 2],Juni[Woche 3],Juni[Woche 4],Juni[Woche 5])","v":{"v":0,"d":"0.0"}},{"$f":"TEXT(DATEVALUE(Juni[[#Headers],[Juni]]&\" \"&YEAR(TODAY())),\"MMM.\")&\" summe: Überstunden\"","v":"Jun. summe: Überstunden"},null,{"$f":"SUM(Juni[Überstunden],Juni[[Überstunden  ]],Juni[[Überstunden   ]],Juni[[Überstunden    ]],Juni[[Überstunden     ]])","v":{"v":0,"d":"0.0"}}]
["Die dritte Quartalsüberschrift für Juli, August, September finden Sie in Zelle E67. ",{"$nulls":3},"Juli, August, September      Zeiterfassungskarte für Mitarbeiter: Täglich, wöchentlich, monatlich, jährlich"]
["Geben Sie regulären Arbeits- und die Überstunden für Juli in der Tabelle ab Zelle E68 ein. Die nächste Anweisung finden Sie in Zelle A77.",{"$nulls":3},"Juli","Woche 1","Überstunden","Woche 2","Überstunden ","Woche 3","Überstunden  ","Woche 4","Überstunden   ","Woche 5","Überstunden     "]
[{"$nulls":4},"Montag"]
[{"$nulls":4},"Dienstag"]
[{"$nulls":4},"Mittwoch"]
[{"$nulls":4},"Donnerstag"]
[{"$nulls":4},"Freitag"]
[{"$nulls":4},"Samstag"]
[{"$nulls":4},"Sonntag"]
[{"$nulls":4},"Wöchentliche Stunden gesamt",{"$f":"SUM(F69:F75)","v":{"v":0,"d":"0.0"}},{"v":0,"d":"0.0"},{"v":0,"d":"0.0"},{"v":0,"d":"0.0"},{"v":0,"d":"0.0"},{"v":0,"d":"0.0"},{"v":0,"d":"0.0"},{"v":0,"d":"0.0"},{"v":0,"d":"0.0"},{"v":0,"d":"0.0"}]
["Die Summe der regulären Arbeitsstunden im Juli in Zelle F77 und die Summe der Überstunden im Juli in Zelle I77 sind automatisch berechnet. Die nächste Anweisung finden Sie in Zelle A79.",{"$nulls":3},{"$f":"TEXT(DATEVALUE(Juli[[#Headers],[Juli]]&\" \"&YEAR(TODAY())),\"MMM.\")&\" summe: Reguläre Std\"","v":"Jul. summe: Reguläre Std"},{"$f":"SUM(Juli[Woche 1],Juli[Woche 2],Juli[Woche 3],Juli[Woche 4],Juli[Woche 5])","v":{"v":0,"d":"0.0"}},{"$f":"TEXT(DATEVALUE(Juli[[#Headers],[Juli]]&\" \"&YEAR(TODAY())),\"MMM.\")&\" summe: Überstunden\"","v":"Jul. summe: Überstunden"},null,{"$f":"SUM(Juli[Überstunden],Juli[[Überstunden ]],Juli[[Überstunden  ]],Juli[[Überstunden   ]],Juli[[Überstunden     ]])","v":{"v":0,"d":"0.0"}}]
[]
["Geben Sie regulären Arbeits- und die Überstunden für August in der Tabelle ab Zelle E79 ein. Die nächste Anweisung finden Sie in Zelle A88.",{"$nulls":3},"August","Woche 1","Überstunden","Woche 2","Überstunden ","Woche 3","Überstunden   ","Woche 4","Überstunden  ","Woche 5","Überstunden    "]
[{"$nulls":4},"Montag"]
[{"$nulls":4},"Dienstag"]
[{"$nulls":4},"Mittwoch"]
[{"$nulls":4},"Donnerstag"]
[{"$nulls":4},"Freitag"]
[{"$nulls":4},"Samstag"]
[{"$nulls":4},"Sonntag"]
[{"$nulls":4},"Wöchentliche Stunden gesamt",{"$f":"SUBTOTAL(109,August[Woche 1])","v":{"v":0,"d":"0.0"}},{"$f":"SUBTOTAL(109,August[Überstunden])","v":{"v":0,"d":"0.0"}},{"$f":"SUBTOTAL(109,August[Woche 2])","v":{"v":0,"d":"0.0"}},{"$f":"SUBTOTAL(109,August[[Überstunden ]])","v":{"v":0,"d":"0.0"}},{"$f":"SUBTOTAL(109,August[Woche 3])","v":{"v":0,"d":"0.0"}},{"$f":"SUBTOTAL(109,August[[Überstunden   ]])","v":{"v":0,"d":"0.0"}},{"$f":"SUBTOTAL(109,August[Woche 4])","v":{"v":0,"d":"0.0"}},{"$f":"SUBTOTAL(109,August[[Überstunden  ]])","v":{"v":0,"d":"0.0"}},{"$f":"SUBTOTAL(109,August[Woche 5])","v":{"v":0,"d":"0.0"}},{"$f":"SUBTOTAL(109,August[[Überstunden    ]])","v":{"v":0,"d":"0.0"}}]
["Die Summe der regulären Arbeitsstunden im August in Zelle F88 und die Summe der Überstunden im August in Zelle I88 sind automatisch berechnet. Die nächste Anweisung finden Sie in Zelle A90.",{"$nulls":3},{"$f":"TEXT(DATEVALUE(August[[#Headers],[August]]&\" \"&YEAR(TODAY())),\"MMM.\")&\" summe: Reguläre Std\"","v":"Aug. summe: Reguläre Std"},{"$f":"SUM(August[Woche 1],August[Woche 2],August[Woche 3],August[Woche 4],August[Woche 5])","v":{"v":0,"d":"0.0"}},{"$f":"TEXT(DATEVALUE(August[[#Headers],[August]]&\" \"&YEAR(TODAY())),\"MMM.\")&\" summe: Überstunden\"","v":"Aug. summe: Überstunden"},null,{"$f":"SUM(August[Überstunden],August[[Überstunden ]],August[[Überstunden   ]],August[[Überstunden  ]],August[[Überstunden    ]])","v":{"v":0,"d":"0.0"}}]
[]
["Geben Sie regulären Arbeits- und die Überstunden für September in der Tabelle ab Zelle E90 ein. Die nächste Anweisung finden Sie in Zelle A99.",{"$nulls":3},"September","Woche 1","Überstunden","Woche 2","Überstunden ","Woche 3","Überstunden  ","Woche 4","Überstunden   ","Woche 5","Überstunden    "]
[{"$nulls":4},"Montag"]
[{"$nulls":4},"Dienstag"]
[{"$nulls":4},"Mittwoch"]
[{"$nulls":4},"Donnerstag"]
[{"$nulls":4},"Freitag"]
[{"$nulls":4},"Samstag"]
[{"$nulls":4},"Sonntag"]
[{"$nulls":4},"Wöchentliche Stunden gesamt",{"$f":"SUBTOTAL(109,September[Woche 1])","v":{"v":0,"d":"0.0"}},{"$f":"SUBTOTAL(109,September[Überstunden])","v":{"v":0,"d":"0.0"}},{"$f":"SUBTOTAL(109,September[Woche 2])","v":{"v":0,"d":"0.0"}},{"$f":"SUBTOTAL(109,September[[Überstunden ]])","v":{"v":0,"d":"0.0"}},{"$f":"SUBTOTAL(109,September[Woche 3])","v":{"v":0,"d":"0.0"}},{"$f":"SUBTOTAL(109,September[[Überstunden  ]])","v":{"v":0,"d":"0.0"}},{"$f":"SUBTOTAL(109,September[Woche 4])","v":{"v":0,"d":"0.0"}},{"$f":"SUBTOTAL(109,September[[Überstunden   ]])","v":{"v":0,"d":"0.0"}},{"$f":"SUBTOTAL(109,September[Woche 5])","v":{"v":0,"d":"0.0"}},{"$f":"SUBTOTAL(109,September[[Überstunden    ]])","v":{"v":0,"d":"0.0"}}]
["Die Summe der regulären Arbeitsstunden im September in Zelle F99 und die Summe der Überstunden im September in Zelle I99 sind automatisch berechnet.",{"$nulls":3},{"$f":"TEXT(DATEVALUE(September[[#Headers],[September]]&\" \"&YEAR(TODAY())),\"MMM.\")&\" summe: Reguläre Std\"","v":"Sep. summe: Reguläre Std"},{"$f":"SUM(September[Woche 1],September[Woche 2],September[Woche 3],September[Woche 4],September[Woche 5])","v":{"v":0,"d":"0.0"}},{"$f":"TEXT(DATEVALUE(September[[#Headers],[September]]&\" \"&YEAR(TODAY())),\"MMM.\")&\" summe: Überstunden\"","v":"Sep. summe: Überstunden"},null,{"$f":"SUM(September[Überstunden],September[[Überstunden ]],September[[Überstunden  ]],September[[Überstunden   ]],September[[Überstunden    ]])","v":{"v":0,"d":"0.0"}}]
["Die vierte Quartalsüberschrift für Oktober, November, Dezember finden Sie in Zelle E100. ",{"$nulls":3},"Oktober, November, Dezember      Zeiterfassungskarte für Mitarbeiter: Täglich, wöchentlich, monatlich, jährlich"]
["Geben Sie regulären Arbeits- und die Überstunden für Oktober in der Tabelle ab Zelle E101 ein. Die nächste Anweisung finden Sie in Zelle A110.",{"$nulls":3},"Oktober","Woche 1","Überstunden","Woche 2","Überstunden ","Woche 3","Überstunden  ","Woche 4","Überstunden   ","Woche 5","Überstunden    "]
[{"$nulls":4},"Montag"]
[{"$nulls":4},"Dienstag"]
[{"$nulls":4},"Mittwoch"]
[{"$nulls":4},"Donnerstag"]
[{"$nulls":4},"Freitag"]
[{"$nulls":4},"Samstag"]
[{"$nulls":4},"Sonntag"]
[{"$nulls":4},"Wöchentliche Stunden gesamt",{"$f":"SUBTOTAL(109,Oktober[Woche 1])","v":{"v":0,"d":"0.0"}},{"$f":"SUBTOTAL(109,Oktober[Überstunden])","v":{"v":0,"d":"0.0"}},{"$f":"SUBTOTAL(109,Oktober[Woche 2])","v":{"v":0,"d":"0.0"}},{"$f":"SUBTOTAL(109,Oktober[[Überstunden ]])","v":{"v":0,"d":"0.0"}},{"$f":"SUBTOTAL(109,Oktober[Woche 3])","v":{"v":0,"d":"0.0"}},{"$f":"SUBTOTAL(109,Oktober[[Überstunden  ]])","v":{"v":0,"d":"0.0"}},{"$f":"SUBTOTAL(109,Oktober[Woche 4])","v":{"v":0,"d":"0.0"}},{"$f":"SUBTOTAL(109,Oktober[[Überstunden   ]])","v":{"v":0,"d":"0.0"}},{"$f":"SUBTOTAL(109,Oktober[Woche 5])","v":{"v":0,"d":"0.0"}},{"$f":"SUBTOTAL(109,Oktober[[Überstunden    ]])","v":{"v":0,"d":"0.0"}}]
["Die Summe der regulären Arbeitsstunden im Oktober in Zelle F110 und die Summe der Überstunden im Oktober in Zelle I110 sind automatisch berechnet. Die nächste Anweisung finden Sie in Zelle A112.",{"$nulls":3},{"$f":"TEXT(DATEVALUE(Oktober[[#Headers],[Oktober]]&\" \"&YEAR(TODAY())),\"MMM.\")&\" summe: Reguläre Std\"","v":"Okt. summe: Reguläre Std"},{"$f":"SUM(Oktober[Woche 1],Oktober[Woche 2],Oktober[Woche 3],Oktober[Woche 4],Oktober[Woche 5])","v":{"v":0,"d":"0.0"}},{"$f":"TEXT(DATEVALUE(Oktober[[#Headers],[Oktober]]&\" \"&YEAR(TODAY())),\"MMM.\")&\" summe: Überstunden\"","v":"Okt. summe: Überstunden"},null,{"$f":"SUM(Oktober[Überstunden],Oktober[[Überstunden ]],Oktober[[Überstunden  ]],Oktober[[Überstunden   ]],Oktober[[Überstunden    ]])","v":{"v":0,"d":"0.0"}}]
[]
["Geben Sie regulären Arbeits- und die Überstunden für November in der Tabelle ab Zelle E112 ein. Die nächste Anweisung finden Sie in Zelle A121.",{"$nulls":3},"November","Woche 1","Überstunden","Woche 2","Überstunden ","Woche 3","Überstunden  ","Woche 4","Überstunden    ","Woche 5","Überstunden     "]
[{"$nulls":4},"Montag"]
[{"$nulls":4},"Dienstag"]
[{"$nulls":4},"Mittwoch"]
[{"$nulls":4},"Donnerstag"]
[{"$nulls":4},"Freitag"]
[{"$nulls":4},"Samstag"]
[{"$nulls":4},"Sonntag"]
[{"$nulls":4},"Wöchentliche Stunden gesamt",{"$f":"SUBTOTAL(109,November[Woche 1])","v":{"v":0,"d":"0.0"}},{"$f":"SUBTOTAL(109,November[Überstunden])","v":{"v":0,"d":"0.0"}},{"$f":"SUBTOTAL(109,November[Woche 2])","v":{"v":0,"d":"0.0"}},{"$f":"SUBTOTAL(109,November[[Überstunden ]])","v":{"v":0,"d":"0.0"}},{"$f":"SUBTOTAL(109,November[Woche 3])","v":{"v":0,"d":"0.0"}},{"$f":"SUBTOTAL(109,November[[Überstunden  ]])","v":{"v":0,"d":"0.0"}},{"$f":"SUBTOTAL(109,November[Woche 4])","v":{"v":0,"d":"0.0"}},{"$f":"SUBTOTAL(109,November[[Überstunden    ]])","v":{"v":0,"d":"0.0"}},{"$f":"SUBTOTAL(109,November[Woche 5])","v":{"v":0,"d":"0.0"}},{"$f":"SUBTOTAL(109,November[[Überstunden     ]])","v":{"v":0,"d":"0.0"}}]
["Die Summe der regulären Arbeitsstunden im November in Zelle F121 und die Summe der Überstunden im November in Zelle I121 sind automatisch berechnet. Die nächste Anweisung finden Sie in Zelle A123.",{"$nulls":3},{"$f":"TEXT(DATEVALUE(November[[#Headers],[November]]&\" \"&YEAR(TODAY())),\"MMM.\")&\" summe: Reguläre Std\"","v":"Nov. summe: Reguläre Std"},{"$f":"SUM(November[Woche 1],November[Woche 2],November[Woche 3],November[Woche 4],November[Woche 5])","v":{"v":0,"d":"0.0"}},{"$f":"TEXT(DATEVALUE(November[[#Headers],[November]]&\" \"&YEAR(TODAY())),\"MMM.\")&\" summe: Überstunden\"","v":"Nov. summe: Überstunden"},null,{"$f":"SUM(November[Überstunden],November[[Überstunden ]],November[[Überstunden  ]],November[[Überstunden    ]],November[[Überstunden     ]])","v":{"v":0,"d":"0.0"}}]
[]
["Geben Sie regulären Arbeits- und die Überstunden für Dezember in der Tabelle ab Zelle E123 ein. Die nächste Anweisung finden Sie in Zelle A132.",{"$nulls":3},"Dezember","Woche 1","Überstunden","Woche 2","Überstunden ","Woche 3","Überstunden  ","Woche 4","Überstunden   ","Woche 5","Überstunden    "]
[{"$nulls":4},"Montag"]
[{"$nulls":4},"Dienstag"]
[{"$nulls":4},"Mittwoch"]
[{"$nulls":4},"Donnerstag"]
[{"$nulls":4},"Freitag"]
[{"$nulls":4},"Samstag"]
[{"$nulls":4},"Sonntag"]
[{"$nulls":4},"Wöchentliche Stunden gesamt",{"$f":"SUBTOTAL(109,Dezember[Woche 1])","v":{"v":0,"d":"0.0"}},{"$f":"SUBTOTAL(109,Dezember[Überstunden])","v":{"v":0,"d":"0.0"}},{"$f":"SUBTOTAL(109,Dezember[Woche 2])","v":{"v":0,"d":"0.0"}},{"$f":"SUBTOTAL(109,Dezember[[Überstunden ]])","v":{"v":0,"d":"0.0"}},{"$f":"SUBTOTAL(109,Dezember[Woche 3])","v":{"v":0,"d":"0.0"}},{"$f":"SUBTOTAL(109,Dezember[[Überstunden  ]])","v":{"v":0,"d":"0.0"}},{"$f":"SUBTOTAL(109,Dezember[Woche 4])","v":{"v":0,"d":"0.0"}},{"$f":"SUBTOTAL(109,Dezember[[Überstunden   ]])","v":{"v":0,"d":"0.0"}},{"$f":"SUBTOTAL(109,Dezember[Woche 5])","v":{"v":0,"d":"0.0"}},{"$f":"SUBTOTAL(109,Dezember[[Überstunden    ]])","v":{"v":0,"d":"0.0"}}]
["Die Summe der regulären Arbeitsstunden im Dezember in Zelle F132 und die Summe der Überstunden im Dezember in Zelle I132 sind automatisch berechnet.",{"$nulls":3},{"$f":"TEXT(DATEVALUE(Dezember[[#Headers],[Dezember]]&\" \"&YEAR(TODAY())),\"MMM.\")&\" summe: Reguläre Std\"","v":"Dez. summe: Reguläre Std"},{"$f":"SUM(Dezember[Woche 1],Dezember[Woche 2],Dezember[Woche 3],Dezember[Woche 4],Dezember[Woche 5])","v":{"v":0,"d":"0.0"}},{"$f":"TEXT(DATEVALUE(Dezember[[#Headers],[Dezember]]&\" \"&YEAR(TODAY())),\"MMM.\")&\" summe: Überstunden\"","v":"Dez. summe: Überstunden"},null,{"$f":"SUM(G124:G130,I124:I130,K124:K130,M124:M130,O124:O130)","v":{"v":0,"d":"0.0"}}]